fUSD/lending_fUSD_20240301
["ID","MTS","AMOUNT","RATE_DAILY","PERIOD"]
[316025541,1709327479119,-500.0,0.00022684,2]
[316025542,1709327479128,-758.5,0.00022684,2]
[316025543,1709327479138,-2460.18,0.00022684,2]
[316025544,1709327479147,-500.0,0.00022684,2]
[316025545,1709327479157,-500.0,0.00022684,2]
[316025546,1709327479166,-874.36,0.00022684,2]
[316025547,1709327479176,-5095.22,0.00022684,2]
[316025548,1709327479185,-619.7,0.00022684,2]
[316025549,1709327479195,-4543.29,0.00022684,2]
[316025550,1709327479205,-500.0,0.00022684,2]
[316025551,1709327479214,-2791.17,0.00022684,2]
[316025552,1709327479224,-500.0,0.00022684,2]
[316025553,1709327479234,-13075.41,0.00022684,2]
[316025554,1709327479243,-1086.33,0.00022684,2]
[316025555,1709327479253,-500.0,0.00022684,2]
[316025556,1709327479263,-697.61,0.00022684,2]
[316025557,1709327479272,-500.0,0.00022684,2]
[316025558,1709327479282,-2372.71,0.00022684,2]
[316025559,1709327479291,-531.57,0.00022684,2]
[316025560,1709327479301,-2238.29,0.00022684,2]
[316025561,1709327479310,-3273.4,0.00022684,2]
[316025562,1709327479319,-500.0,0.00022684,2]
[316025563,1709327479329,-3863.53,0.00022684,2]
[316025564,1709327479340,-500.0,0.00022684,2]
[316025565,1709327479350,-13361.28,0.00022684,2]
[316025566,1709327479359,-1208.49,0.00022684,2]
[316025567,1709327479369,-500.0,0.00022684,2]
[316025568,1709327479379,-4739.16,0.00022684,2]
[316025569,1709327479389,-1157.09,0.00022684,2]
[316025570,1709327479398,-15192.43,0.00022684,2]
[316025571,1709327479408,-846.42,0.00022684,2]
[316025572,1709327479418,-1083.08,0.00022684,2]
[316025573,1709327479427,-500.0,0.00022684,2]
[316025574,1709327479437,-500.0,0.00022684,2]
[316025575,1709327479447,-500.0,0.00022684,2]
[316025576,1709327479457,-500.0,0.00022684,2]
[316025577,1709327479467,-836.05,0.00022684,2]
[316025578,1709327479477,-500.0,0.00022684,2]
[316025579,1709327479487,-500.0,0.00022684,2]
[316025580,1709327479497,-3538.29,0.00022684,2]
[316025581,1709327479507,-1380.52,0.00022684,2]
[316025582,1709327479517,-1788.19,0.00022684,2]
[316025583,1709327479528,-570.9,0.00022684,2]
[316025584,1709327479538,-3365.09,0.00022684,2]
[316025585,1709327479547,-1080.69,0.00022684,2]
[316025586,1709327479557,-1084.53,0.00022684,2]
[316025587,1709327479568,-902.73,0.00022684,2]
[316025588,1709327479577,-1536.91,0.00022684,2]
[316025589,1709327479588,-7184.22,0.00022684,2]
[316025590,1709327479598,-712.93,0.00022684,2]
[316025591,1709327479608,-500.0,0.00022684,2]
[316025592,1709327479618,-2694.61,0.00022684,2]
[316025593,1709327479627,-500.0,0.00022684,2]
[316025594,1709327479637,-500.0,0.00022684,2]
[316025595,1709327479647,-527.47,0.00022684,2]
[316025596,1709327479656,-3160.24,0.00022684,2]
[316025597,1709327479666,-500.0,0.00022684,2]
[316025598,1709327479676,-2910.19,0.00022684,2]
[316025599,1709327479685,-907.07,0.00022684,2]
[316025600,1709327479695,-1012.0,0.00022684,2]
[316025601,1709327479705,-1643.86,0.00022684,2]
[316025602,1709327479718,-500.0,0.00022684,2]
[316025603,1709327479729,-518.91,0.00022684,2]
[316025604,1709327479740,-2423.72,0.00022684,2]
[316025605,1709327479750,-729.11,0.00022684,2]
[316025606,1709327479760,-500.0,0.00022684,2]
[316025607,1709327479769,-883.75,0.00022684,2]
[316025608,1709327479779,-509.83,0.00022684,2]
[316025609,1709327479789,-1378.45,0.00022684,2]
[316025610,1709327479799,-589.53,0.00022684,2]
[316025611,1709327479809,-500.0,0.00022684,2]
[316025612,1709327479818,-500.0,0.00022684,2]
[316025613,1709327479827,-500.0,0.00022684,2]
[316025614,1709327479838,-553.48,0.00022684,2]
[316025615,1709327479847,-500.0,0.00022684,2]
[316025616,1709327479857,-500.0,0.00022684,2]
[316025617,1709327479867,-711.66,0.00022684,2]
[316025618,1709327479877,-735.21,0.00022684,2]
[316025619,1709327479886,-500.0,0.00022684,2]
[316025620,1709327479896,-697.75,0.00022684,2]
[316025621,1709327479907,-1628.97,0.00022684,2]
[316025622,1709327479917,-500.0,0.00022684,2]
[316025623,1709327479928,-500.0,0.00022684,2]
[316025624,1709327479938,-746.85,0.00022684,2]
[316025625,1709327479948,-500.0,0.00022684,2]
[316025626,1709327479958,-275.37,0.00022684,2]
[316025627,1709327479968,-703.92,0.00022684,2]
[316025628,1709327479978,-766.47,0.00022684,2]
[316025629,1709327479989,-583.31,0.00022684,2]
[316025630,1709327479999,-500.0,0.00022684,2]
[316025631,1709327480009,-500.0,0.00022684,2]
[316025632,1709327480018,-932.22,0.00022684,2]
[316025633,1709327480028,-500.0,0.00022684,2]
[316025634,1709327480039,-894.62,0.00022684,2]
[316025635,1709327480050,-1880.26,0.00022684,2]
[316025636,1709327480061,-1015.13,0.00022684,2]
[316025637,1709327480071,-729.79,0.00022684,2]
[316025638,1709327480081,-1414.53,0.00022684,2]
[316025639,1709327480092,-500.0,0.00022684,2]
[316025640,1709327480102,-914.2,0.00022684,2]
[316025641,1709327480112,-570.43,0.00022684,2]
[316025642,1709327480122,-629.7,0.00022684,2]
[316025643,1709327480133,-500.0,0.00022684,2]
[316025644,1709327480143,-2917.57961031,0.00022684,2]
[316025645,1709327480572,-10.47038969,0.00022684,2]
[316025646,1709327480582,-582.48,0.00022684,2]
[316025647,1709327480593,-801.30036646,0.00022684,2]
[316025648,1709327480606,-226.69963354,0.00022684,2]
[316025649,1709327480616,-254.43273615,0.00022684,2]
[316025650,1709327480628,-245.56726385,0.00022684,2]
[316025651,1709327480638,-626.77,0.00022684,2]
[316025652,1709327480648,-500.0,0.00022684,2]
[316025653,1709327480658,-552.37,0.00022684,2]
[316025654,1709327480668,-1008.5,0.00022684,2]
[316025655,1709327480678,-635.13,0.00022684,2]
[316025656,1709327480688,-2000.02956559,0.00022684,2]
[316025657,1709327480707,-1808.74043441,0.00022684,2]
[316025658,1709327480780,-975.41956559,0.00022684,2]
[316025659,1709327480793,-822.58043441,0.00022684,2]
[316025660,1709327480804,-500.0,0.00022684,2]
[316025661,1709327480813,-698.46,0.00022684,2]
[316025662,1709327480824,-748.33,0.00022684,2]
[316025663,1709327480834,-2046.85,0.00022684,2]
[316025664,1709327480845,-500.0,0.00022684,2]
[316025665,1709327480854,-817.49,0.00022684,2]
[316025666,1709327480864,-963.9,0.00022684,2]
[316025667,1709327480874,-500.0,0.00022684,2]
[316025668,1709327480883,-2795.7,0.00022684,2]
[316025669,1709327480893,-1750.36,0.00022684,2]
[316025670,1709327480902,-544.42,0.00022684,2]
[316025671,1709327480912,-500.0,0.00022684,2]
[316025672,1709327480921,-500.0,0.00022684,2]
[316025673,1709327480931,-1462.57,0.00022684,2]
[316025674,1709327480941,-581.14,0.00022684,2]
[316025675,1709327480950,-963.96,0.00022684,2]
[316025676,1709327480960,-2872.28,0.00022684,2]
[316025677,1709327480970,-1433.79,0.00022684,2]
[316025678,1709327480980,-500.0,0.00022684,2]
[316025679,1709327480989,-564.73,0.00022684,2]
[316025680,1709327480999,-2954.46,0.00022684,2]
[316025681,1709327481009,-668.73,0.00022684,2]
[316025682,1709327481019,-500.0,0.00022684,2]
[316025683,1709327481029,-854.05,0.00022684,2]
[316025684,1709327481038,-500.0,0.00022684,2]
[316025685,1709327481048,-680.92,0.00022684,2]
[316025686,1709327481058,-500.0,0.00022684,2]
[316025687,1709327481068,-587.0,0.00022684,2]
[316025688,1709327481078,-500.0,0.00022684,2]
[316025689,1709327481088,-500.0,0.00022684,2]
[316025690,1709327481098,-500.0,0.00022684,2]
[316025691,1709327481108,-1483.22,0.00022684,2]
[316025692,1709327481118,-992.09,0.00022684,2]
[316025693,1709327481128,-3296.84,0.00022684,2]
[316025694,1709327481138,-1166.7,0.00022684,2]
[316025695,1709327481147,-633.55,0.00022684,2]
[316025696,1709327481157,-500.0,0.00022684,2]
[316025697,1709327481166,-1520.97,0.00022684,2]
[316025698,1709327481175,-649.61,0.00022684,2]
[316025699,1709327481184,-1316.59,0.00022684,2]
[316025700,1709327481194,-718.57,0.00022684,2]
[316025701,1709327481204,-832.13956559,0.00022684,2]
[316025702,1709327481222,-488.19,0.00022575,2]
[316025703,1709327481243,-5596.78,0.00022575,2]
[316025704,1709327481252,-2108.84,0.00022575,2]
[316025705,1709327481262,-1126.89043441,0.00022684,2]
[316025706,1709327481272,-500.0,0.00022684,2]
[316025707,1709327481281,-10169.7,0.00022684,2]
[316025708,1709327481291,-2072.5,0.00022684,2]
[316025709,1709327481301,-500.0,0.00022684,2]
[316025710,1709327481311,-2628.23557489,0.00022684,2]
[316025711,1709327481745,151.0,0.00019726,2]
[316025712,1709327482716,-52.0,0.00019726,2]
[316025713,1709327482726,-150.0,0.00020076,2]
[316025714,1709327482736,-2456.8278,0.00021517,2]
[316025715,1709327482745,-609.8133168,0.00021817,2]
[316025716,1709327482756,-30616.74204535,0.00021917,4]
[316025717,1709327482783,-886.64,0.00021907,3]
[316025718,1709327482793,-5856893.22586801,0.00021917,4]
[316025719,1709327482804,-500.0,0.00021917,2]
[316025720,1709327482814,-500.0,0.00021917,2]
[316025721,1709327482824,-500.0,0.00021917,2]
[316025722,1709327482834,-500.0,0.00022027,2]
[316025723,1709327482845,-500.0,0.00022027,2]
[316025724,1709327482855,-400.22006637,0.00022027,2]
[316025725,1709327482865,-500.0,0.00022136,2]
[316025726,1709327482874,-500.0,0.00022136,2]
[316025727,1709327482884,-500.0,0.00022246,2]
[316025728,1709327482893,-500.0,0.00022356,2]
[316025729,1709327482903,-500.0,0.00022356,2]
[316025730,1709327482912,-500.0,0.00022465,2]
[316025731,1709327482922,-418.4387559,0.00022575,2]
[316025732,1709327482931,-4441.98442511,0.00022684,2]
[316025733,1709327482940,-500.0,0.00022684,2]
[316025734,1709327482950,-529.11,0.00022684,2]
[316025735,1709327482960,-5861.18,0.00022684,2]
[316025736,1709327482970,-537.06,0.00022684,2]
[316025737,1709327482979,-33577.13,0.00022684,2]
[316025738,1709327482989,-891.32,0.00022684,2]
[316025739,1709327482998,-1668.82,0.00022684,2]
[316025740,1709327483008,-8901.44,0.00022684,2]
[316025741,1709327483019,-2011.98,0.00022684,2]
[316025742,1709327483028,-3361.6,0.00022684,2]
[316025743,1709327483038,-500.0,0.00022684,2]
[316025744,1709327483047,-967.73,0.00022684,2]
[316025745,1709327483058,-1064.03,0.00022684,2]
[316025746,1709327483067,-500.0,0.00022684,2]
[316025747,1709327483077,-500.0,0.00022684,2]
[316025748,1709327483089,-638.84,0.00022684,2]
[316025749,1709327483097,-2149.2,0.00022684,2]
[316025750,1709327483107,-6084.97,0.00022684,2]
[316025751,1709327483116,-2108.84,0.00022684,2]
[316025752,1709327483127,-6000.0,0.000227,2]
[316025753,1709327483136,-290.67047282,0.00022709,2]
[316025754,1709327483146,-691.39,0.0002273,2]
[316025755,1709327483157,-1303.31798577,0.00022733,2]
[316025756,1709327483168,-168.63,0.0002274,2]
[316025757,1709327483178,-151.73,0.0002274,2]
[316025758,1709327483188,-222.27,0.00022746,2]
[316025759,1709327483197,-290.67047282,0.00022747,2]
[316025760,1709327483206,-166.27614995,0.00022759,2]
[316025761,1709327483216,-213.20417308,0.00022769,2]
[316025762,1709327483225,-290.67047282,0.00022785,2]
[316025763,1709327483235,-150.0,0.00022786,2]
[316025764,1709327483245,-25540.90635269,0.0002279,2]
[316025765,1709327483254,-437.19164382,0.00022793,2]
[316025766,1709327483265,-500.0,0.00022794,2]
[316025767,1709327483274,-500.0,0.00022794,2]
[316025768,1709327483283,-500.0,0.00022794,2]
[316025769,1709327483293,-500.0,0.00022794,2]
[316025770,1709327483302,-500.0,0.00022794,2]
[316025771,1709327483311,-500.0,0.00022794,2]
[316025772,1709327483321,-572.56,0.00022794,2]
[316025773,1709327483331,-500.0,0.00022794,2]
[316025774,1709327483343,-500.0,0.00022794,2]
[316025775,1709327483352,-500.0,0.00022794,2]
[316025776,1709327483362,-500.0,0.00022794,2]
[316025777,1709327483371,-500.0,0.00022794,2]
[316025778,1709327483381,-500.0,0.00022794,2]
[316025779,1709327483391,-176.66224461,0.00022794,2]
[316025780,1709327483401,-500.0,0.00022794,2]
[316025781,1709327483411,-704.59,0.00022794,2]
[316025782,1709327483420,-500.0,0.00022794,2]
[316025783,1709327483430,-500.0,0.00022794,2]
[316025784,1709327483439,-500.0,0.00022794,2]
[316025785,1709327483449,-500.0,0.00022794,2]
[316025786,1709327483460,-504.00063542,0.00022794,2]
[316025787,1709327483470,-593.90381495,0.00022794,2]
[316025788,1709327483479,-597.89,0.00022794,2]
[316025789,1709327483499,-500.0,0.00022794,2]
[316025790,1709327483510,-500.0,0.00022794,2]
[316025791,1709327483520,-226.93103984,0.00022794,2]
[316025792,1709327483530,-500.0,0.00022794,2]
[316025793,1709327483539,-500.0,0.00022794,2]
[316025794,1709327483549,-500.0,0.00022794,2]
[316025795,1709327483558,-500.0,0.00022794,2]
[316025796,1709327483568,-500.0,0.00022794,2]
[316025797,1709327483577,-500.0,0.00022794,2]
[316025798,1709327483590,-500.0,0.00022794,2]
[316025799,1709327483602,-500.0,0.00022794,2]
[316025800,1709327483612,-500.0,0.00022794,2]
[316025801,1709327483621,-563.82,0.00022794,2]
[316025802,1709327483632,-552.9,0.00022794,2]
[316025803,1709327483642,-500.0,0.00022794,2]
[316025804,1709327483651,-500.0,0.00022794,2]
[316025805,1709327483661,-486.15530141,0.00022794,2]
[316025806,1709327483671,-521.07,0.00022794,2]
[316025807,1709327483681,-500.0,0.00022794,2]
[316025808,1709327483690,-500.0,0.00022794,2]
[316025809,1709327483700,-500.0,0.00022794,2]
[316025810,1709327483710,-554.47,0.00022794,2]
[316025811,1709327483720,-500.0,0.00022794,2]
[316025812,1709327483731,-500.0,0.00022794,2]
[316025813,1709327483741,-500.0,0.00022794,2]
[316025814,1709327483751,-500.0,0.00022794,2]
[316025815,1709327483762,-620.34,0.00022794,2]
[316025816,1709327483771,-945.1,0.00022794,2]
[316025817,1709327483781,-500.0,0.00022794,2]
[316025818,1709327483791,-500.0,0.00022794,2]
[316025819,1709327483801,-500.0,0.00022794,2]
[316025820,1709327483813,-500.0,0.00022794,2]
[316025821,1709327483823,-500.0,0.00022794,2]
[316025822,1709327483833,-500.0,0.00022794,2]
[316025823,1709327483845,-507.13,0.00022794,2]
[316025824,1709327483855,-585.61,0.00022794,2]
[316025825,1709327483865,-500.0,0.00022794,2]
[316025826,1709327483874,-500.0,0.00022794,2]
[316025827,1709327483885,-500.0,0.00022794,2]
[316025828,1709327483895,-500.0,0.00022794,2]
[316025829,1709327483905,-655.68,0.00022794,2]
[316025830,1709327483914,-500.0,0.00022794,2]
[316025831,1709327483924,-500.0,0.00022794,2]
[316025832,1709327483934,-500.0,0.00022794,2]
[316025833,1709327483943,-500.0,0.00022794,2]
[316025834,1709327483955,-928.54,0.00022794,2]
[316025835,1709327483967,-549.82,0.00022794,2]
[316025836,1709327483976,-500.0,0.00022794,2]
[316025837,1709327483985,-500.0,0.00022794,2]
[316025838,1709327483995,-500.0,0.00022794,2]
[316025839,1709327484004,-500.0,0.00022794,2]
[316025840,1709327484014,-500.0,0.00022794,2]
[316025841,1709327484023,-585.12,0.00022794,2]
[316025842,1709327484032,-537.75,0.00022794,2]
[316025843,1709327484043,-740.69,0.00022794,2]
[316025844,1709327484053,-725.29,0.00022794,2]
[316025845,1709327484063,-500.0,0.00022794,2]
[316025846,1709327484072,-500.0,0.00022794,2]
[316025847,1709327484082,-500.0,0.00022794,2]
[316025848,1709327484093,-500.0,0.00022794,2]
[316025849,1709327484103,-567.26,0.00022794,2]
[316025850,1709327484112,-1074.01,0.00022794,2]
[316025851,1709327484122,-500.0,0.00022794,2]
[316025852,1709327484131,-724.85,0.00022794,2]
[316025853,1709327484141,-500.0,0.00022794,2]
[316025854,1709327484150,-500.0,0.00022794,2]
[316025855,1709327484159,-500.0,0.00022794,2]
[316025856,1709327484169,-500.0,0.00022794,2]
[316025857,1709327484179,-500.0,0.00022794,2]
[316025858,1709327484188,-500.0,0.00022794,2]
[316025859,1709327484198,-500.0,0.00022794,2]
[316025860,1709327484207,-500.0,0.00022794,2]
[316025861,1709327484216,-661.14,0.00022794,2]
[316025862,1709327484226,-500.0,0.00022794,2]
[316025863,1709327484235,-677.52,0.00022794,2]
[316025864,1709327484245,-500.0,0.00022794,2]
[316025865,1709327484254,-500.0,0.00022794,2]
[316025866,1709327484263,-500.0,0.00022794,2]
[316025867,1709327484273,-500.0,0.00022794,2]
[316025868,1709327484282,-500.0,0.00022794,2]
[316025869,1709327484291,-500.0,0.00022794,2]
[316025870,1709327484301,-886.35,0.00022794,2]
[316025871,1709327484311,-500.0,0.00022794,2]
[316025872,1709327484320,-621.47,0.00022794,2]
[316025873,1709327484330,-500.0,0.00022794,2]
[316025874,1709327484340,-500.0,0.00022794,2]
[316025875,1709327484349,-626.28,0.00022794,2]
[316025876,1709327484359,-814.38,0.00022794,2]
[316025877,1709327484369,-500.0,0.00022794,2]
[316025878,1709327484379,-500.0,0.00022794,2]
[316025879,1709327484390,-452.09264727,0.00022794,2]
[316025880,1709327484399,-500.0,0.00022794,2]
[316025881,1709327484409,-500.0,0.00022794,2]
[316025882,1709327484419,-783.23,0.00022794,2]
[316025883,1709327484430,-500.0,0.00022794,2]
[316025884,1709327484441,-500.0,0.00022794,2]
[316025885,1709327484450,-500.0,0.00022794,2]
[316025886,1709327484461,-610.08,0.00022794,2]
[316025887,1709327484471,-339.37967949,0.00022794,2]
[316025888,1709327484481,-1032.68,0.00022794,2]
[316025889,1709327484491,-500.0,0.00022794,2]
[316025890,1709327484501,-500.0,0.00022794,2]
[316025891,1709327484511,-500.0,0.00022794,2]
[316025892,1709327484521,-979.52,0.00022794,2]
[316025893,1709327484531,-500.0,0.00022794,2]
[316025894,1709327484541,-500.0,0.00022794,2]
[316025895,1709327484550,-595.94,0.00022794,2]
[316025896,1709327484560,-500.0,0.00022794,2]
[316025897,1709327484569,-500.0,0.00022794,2]
[316025898,1709327484579,-500.0,0.00022794,2]
[316025899,1709327484588,-500.0,0.00022794,2]
[316025900,1709327484599,-500.0,0.00022794,2]
[316025901,1709327484608,-694.02,0.00022794,2]
[316025902,1709327484619,-730.54,0.00022794,2]
[316025903,1709327484628,-500.0,0.00022794,2]
[316025904,1709327484639,-503.96,0.00022794,2]
[316025905,1709327484650,-500.0,0.00022794,2]
[316025906,1709327484660,-1631.05,0.00022794,2]
[316025907,1709327484670,-500.0,0.00022794,2]
[316025908,1709327484681,-500.0,0.00022794,2]
[316025909,1709327484690,-500.0,0.00022794,2]
[316025910,1709327484700,-579.96,0.00022794,2]
[316025911,1709327484712,-500.0,0.00022794,2]
[316025912,1709327484723,-623.07,0.00022794,2]
[316025913,1709327484733,-635.47,0.00022794,2]
[316025914,1709327484742,-570.22,0.00022794,2]
[316025915,1709327484752,-1967.89,0.00022794,2]
[316025916,1709327484763,-790.48,0.00022794,2]
[316025917,1709327484772,-500.0,0.00022794,2]
[316025918,1709327484782,-500.0,0.00022794,2]
[316025919,1709327484791,-3840.77,0.00022794,2]
[316025920,1709327484801,-500.0,0.00022794,2]
[316025921,1709327484812,-709.22,0.00022794,2]
[316025922,1709327484821,-674.18,0.00022794,2]
[316025923,1709327484831,-802.02,0.00022794,2]
[316025924,1709327484841,-500.0,0.00022794,2]
[316025925,1709327485044,-758.5,0.00022794,2]
[316025926,1709327485054,-2460.18,0.00022794,2]
[316025927,1709327485064,-500.0,0.00022794,2]
[316025928,1709327485074,-500.0,0.00022794,2]
[316025929,1709327485084,-874.36,0.00022794,2]
[316025930,1709327485095,-5095.22,0.00022794,2]
[316025931,1709327485106,-619.7,0.00022794,2]
[316025932,1709327485116,-4543.29,0.00022794,2]
[316025933,1709327485126,-500.0,0.00022794,2]
[316025934,1709327485136,-2791.17,0.00022794,2]
[316025935,1709327485146,-500.0,0.00022794,2]
[316025936,1709327485156,-13075.41,0.00022794,2]
[316025937,1709327485166,-1086.33,0.00022794,2]
[316025938,1709327485175,-500.0,0.00022794,2]
[316025939,1709327485185,-697.61,0.00022794,2]
[316025940,1709327485195,-500.0,0.00022794,2]
[316025941,1709327485205,-2372.71,0.00022794,2]
[316025942,1709327485214,-531.57,0.00022794,2]
[316025943,1709327485224,-2238.29,0.00022794,2]
[316025944,1709327485233,-3273.4,0.00022794,2]
[316025945,1709327485243,-500.0,0.00022794,2]
[316025946,1709327485252,-500.0,0.00022794,2]
[316025947,1709327485262,-13361.28,0.00022794,2]
[316025948,1709327485271,-1208.49,0.00022794,2]
[316025949,1709327485281,-500.0,0.00022794,2]
[316025950,1709327485290,-4739.16,0.00022794,2]
[316025951,1709327485301,-1157.09,0.00022794,2]
[316025952,1709327485310,-15192.43,0.00022794,2]
[316025953,1709327485319,-846.42,0.00022794,2]
[316025954,1709327485329,-500.0,0.00022794,2]
[316025955,1709327485339,-500.0,0.00022794,2]
[316025956,1709327485348,-500.0,0.00022794,2]
[316025957,1709327485358,-500.0,0.00022794,2]
[316025958,1709327485369,-836.05,0.00022794,2]
[316025959,1709327485379,-500.0,0.00022794,2]
[316025960,1709327485389,-500.0,0.00022794,2]
[316025961,1709327485398,-3538.29,0.00022794,2]
[316025962,1709327485408,-1380.52,0.00022794,2]
[316025963,1709327485417,-1788.19,0.00022794,2]
[316025964,1709327485427,-570.9,0.00022794,2]
[316025965,1709327485437,-3365.09,0.00022794,2]
[316025966,1709327485447,-1080.69,0.00022794,2]
[316025967,1709327485457,-1084.53,0.00022794,2]
[316025968,1709327485467,-902.73,0.00022794,2]
[316025969,1709327485478,-1536.91,0.00022794,2]
[316025970,1709327485487,-7184.22,0.00022794,2]
[316025971,1709327485497,-712.93,0.00022794,2]
[316025972,1709327485506,-500.0,0.00022794,2]
[316025973,1709327485517,-2694.61,0.00022794,2]
[316025974,1709327485528,-500.0,0.00022794,2]
[316025975,1709327485538,-527.47,0.00022794,2]
[316025976,1709327485549,-500.0,0.00022794,2]
[316025977,1709327485558,-3160.24,0.00022794,2]
[316025978,1709327485568,-500.0,0.00022794,2]
[316025979,1709327485577,-2910.19,0.00022794,2]
[316025980,1709327485587,-907.07,0.00022794,2]
[316025981,1709327485598,-1012.0,0.00022794,2]
[316025982,1709327485607,-1643.86,0.00022794,2]
[316025983,1709327485616,-500.0,0.00022794,2]
[316025984,1709327485627,-518.91,0.00022794,2]
[316025985,1709327485637,-2423.72,0.00022794,2]
[316025986,1709327485647,-729.11,0.00022794,2]
[316025987,1709327485656,-500.0,0.00022794,2]
[316025988,1709327485666,-883.75,0.00022794,2]
[316025989,1709327485675,-509.83,0.00022794,2]
[316025990,1709327485686,-1378.45,0.00022794,2]
[316025991,1709327485695,-589.53,0.00022794,2]
[316025992,1709327485705,-500.0,0.00022794,2]
[316025993,1709327485715,-500.0,0.00022794,2]
[316025994,1709327485726,-500.0,0.00022794,2]
[316025995,1709327485737,-553.48,0.00022794,2]
[316025996,1709327485747,-500.0,0.00022794,2]
[316025997,1709327485756,-522.49693213,0.00022794,2]
[316025998,1709327485765,-711.66,0.00022794,2]
[316025999,1709327485775,-735.21,0.00022794,2]
[316026000,1709327485786,-500.0,0.00022794,2]
[316026001,1709327485796,-697.75,0.00022794,2]
[316026002,1709327485805,-1628.97,0.00022794,2]
[316026003,1709327485817,-500.0,0.00022794,2]
[316026004,1709327485828,-500.0,0.00022794,2]
[316026005,1709327485839,-746.85,0.00022794,2]
[316026006,1709327485849,-500.0,0.00022794,2]
[316026007,1709327485860,-703.92,0.00022794,2]
[316026008,1709327485871,-766.47,0.00022794,2]
[316026009,1709327485881,-583.31,0.00022794,2]
[316026010,1709327485891,-500.0,0.00022794,2]
[316026011,1709327485901,-500.0,0.00022794,2]
[316026012,1709327485912,-932.22,0.00022794,2]
[316026013,1709327485923,-894.62,0.00022794,2]
[316026014,1709327485935,-500.0,0.00022794,2]
[316026015,1709327485946,-1880.26,0.00022794,2]
[316026016,1709327485956,-1015.13,0.00022794,2]
[316026017,1709327485967,-729.79,0.00022794,2]
[316026018,1709327485977,-1414.53,0.00022794,2]
[316026019,1709327485989,-500.0,0.00022794,2]
[316026020,1709327486000,-914.2,0.00022794,2]
[316026021,1709327486010,-570.43,0.00022794,2]
[316026022,1709327486019,-629.7,0.00022794,2]
[316026023,1709327486029,-500.0,0.00022794,2]
[316026024,1709327486039,-2928.05,0.00022794,2]
[316026025,1709327486049,-582.48,0.00022794,2]
[316026026,1709327486059,-1028.0,0.00022794,2]
[316026027,1709327486069,-500.0,0.00022794,2]
[316026028,1709327486078,-626.77,0.00022794,2]
[316026029,1709327486087,-500.0,0.00022794,2]
[316026030,1709327486097,-552.37,0.00022794,2]
[316026031,1709327486106,-1008.5,0.00022794,2]
[316026032,1709327486115,-3808.77,0.00022794,2]
[316026033,1709327486126,-1798.0,0.00022794,2]
[316026034,1709327486137,-642.79465728,0.00022794,2]
[316026035,1709327486147,-698.46,0.00022794,2]
[316026036,1709327486158,-635.13,0.00022794,2]
[316026037,1709327486167,-748.33,0.00022794,2]
[316026038,1709327486177,-2046.85,0.00022794,2]
[316026039,1709327486187,-500.0,0.00022794,2]
[316026040,1709327486198,-817.49,0.00022794,2]